Workbook

Sheet Sheet1
A1: Gauss-Newton, Gradient-Search and Levenberg-Marquardt algorithms for Poisson distributed variables
A2: Nonlinear regression algebra for y = Ae-Gx +B. | L2: parameters
A3: Change current solution in cells M4:M6 to see how the starting values affect current and next solution. | L3: names | M3: current | N3: change | O3: next | P3: std. dev. | Q3: correlation matrix
A4: Change l-factor to affect gradient-search and Levenberg-Marquardt algorithm.. | L4: A = | M4: 98.90434289 | N4: =MMULT(MMULT(MMULT(P10:R12,TRANSPOSE(Jacobian_mat)),y_weight_mat),G12:G32) -> -0.01402248107 | O4: =M4+N4 -> 98.89032041 | P4: =a_stddevs_vec -> 6.170799148 | Q4: =P16:R18/P4:P6/TRANSPOSE(P4:P6) -> 1 | R4: 0.1514409759 | S4: 0.4858030123
A5: Hit "cntl + I" to iterate solution. Hit "cntl + r" to regenerate ymeas. | H5: algorithm | L5: B = | M5: 3.273883703 | N5: -0.03103188562 | O5: =M5+N5 -> 3.242851817 | P5: 2.103261334 | Q5: 0.1514409759 | R5: 1 | S5: 0.8625262525
L6: G = | M6: 0.1809402715 | N6: 0.0003884723938 | O6: =M6+N6 -> 0.1813287439 | P6: 0.02094302038 | Q6: 0.4858030123 | R6: 0.8625262525 | S6: 1
E7: l = | F7: 10 | L7: L = | M7: =SUM(C12:C32*LN(E12:E32)-E12:E32) -> 1817.465046 | N7: =O7-M7 -> 0.04465129069 | O7: =SUM(C12:C32*LN(F12:F32)-F12:F32) -> 1817.509697
B8: Atrue = | C8: 100 | E8: l-factor = | F8: 10 | L8: c2 = | M8: =MMULT(TRANSPOSE(G12:G32),MMULT(y_weight_mat,G12:G32)) -> 24.57551764 | N8: =O8-M8 -> -0.0890283282 | O8: =MMULT(TRANSPOSE(H12:H32),MMULT(y_weight_mat,H12:H32)) -> 24.48648931
B9: Btrue = | C9: 5 | I9: Jacobian matrix | M9: [X] (l modified) | P9: [X]-1 (l modified) | S9: Marquardt multiplier
B10: Gtrue = | C10: 0.2 | E10: yfit | G10: Dy | I10: [Jya] | M10: =S10:U12*M16:O18 -> 0.596391785 | N10: 0.1662315846 | O10: -22.1599539 | P10: =MINVERSE(M10:O12) -> 1.687972763 | Q10: -0.01664798519 | R10: 0.0001771514733 | S10: =1+F7 -> 11 | T10: 1 | U10: 1
A11: ytrue | B11: x | C11: ymeas | D11: sy | E11: current | F11: next | G11: current | H11: next | I11: dy/dA | J11: dy/dB | K11: dy/dG | M11: 0.1662315846 | N11: 15.31780678 | O11: -144.4174654 | P11: -0.01664798519 | Q11: 0.06590070622 | R11: 4.630231707e-05 | S11: 1 | T11: =1+F7 -> 11 | U11: 1
A12: =$C$8*EXP(-$C$10*B12)+$C$9 -> 105 | B12: 0 | C12: 97 | D12: =SQRT(E12) -> 10.10832462 | E12: =$M$4*EXP(-$M$6*B12)+$M$5 -> 102.1782266 | F12: =$O$4*EXP(-$O$6*B12)+$O$5 -> 102.1331722 | G12: =C12-$M$4*EXP(-$M$6*B12)-$M$5 -> -5.178226595 | H12: =C12-$O$4*EXP(-$O$6*B12)-$O$5 -> -5.133172228 | I12: =EXP(-$M$6*x_vec) -> 1 | J12: 1 | K12: =-x_vec*$M$4*EXP(-$M$6*x_vec) -> 0 | M12: -22.1599539 | N12: -144.4174654 | O12: 197577.4638 | P12: 0.0001771514733 | Q12: 4.630231707e-05 | R12: 5.115019256e-06 | S12: 1 | T12: 1 | U12: =1+F7 -> 11
A13: =$C$8*EXP(-$C$10*B13)+$C$9 -> 86.87307531 | B13: 1 | C13: 98 | D13: =SQRT(E13) -> 9.263265841 | E13: 85.80809404 | F13: 85.73330911 | G13: 12.19190596 | H13: 12.26669089 | I13: =EXP(-$M$6*B13) -> 0.8344851997 | J13: 1 | K13: -82.53421033
A14: 72.0320046 | B14: 2 | C14: 74 | D14: 8.493966135 | E14: 72.1474607 | F14: 72.05318144 | G14: 1.852539304 | H14: 1.946818563 | I14: 0.6963655486 | J14: 1 | K14: -137.747154 | M14: Current
A15: 59.88116361 | B15: 3 | C15: 58 | D15: 7.794091631 | E15: 60.74786436 | F15: 60.64175125 | G15: -2.747864356 | H15: -2.641751254 | I15: 0.5811067439 | J15: 1 | K15: -172.421942 | M15: [X] (curvature matrix) | P15: [X]-1 (covariance matrix)
A16: 49.93289641 | B16: 4 | C16: 47 | D16: 7.157867694 | E16: 51.23506993 | F16: 51.12278023 | G16: -4.235069927 | H16: -4.122780234 | I16: 0.4849249772 | J16: 1 | K16: -191.8447449 | M16: =MMULT(MMULT(TRANSPOSE(Jacobian_mat),y_weight_mat),Jacobian_mat) -> 0.054217435 | N16: 0.1662315846 | O16: -22.1599539 | P16: =MINVERSE(M16:O18) -> 38.07876212 | Q16: 1.96552263 | R16: 0.062782836
A17: 41.78794412 | B17: 5 | C17: 44 | D17: 6.580029162 | E17: 43.29678377 | F17: 43.18242501 | G17: 0.7032162318 | H17: 0.8175749909 | I17: 0.4046627165 | J17: 1 | K17: -200.1145003 | M17: 0.1662315846 | N17: 1.392527889 | O17: -144.4174654 | P17: 1.96552263 | Q17: 4.423708238 | R17: 0.03799311268
A18: 35.11942119 | B18: 6 | C18: 43 | D18: 6.055774224 | E18: 36.67240146 | F18: 36.55888965 | G18: 6.327598543 | H18: 6.441110346 | I18: 0.3376850478 | J18: 1 | K18: -200.3911065 | M18: -22.1599539 | N18: -144.4174654 | O18: 17961.58762 | P18: 0.062782836 | Q18: 0.03799311268 | R18: 0.0004386101026
A19: 29.65969639 | B19: 7 | C19: 23 | D19: 5.5807215 | E19: 31.14445246 | F19: 31.03379419 | G19: -8.144452462 | H19: -8.033794194 | I19: 0.2817931745 | J19: 1 | K19: -195.0939813
A20: 25.1896518 | B20: 8 | C20: 31 | D20: 5.150869911 | E20: 26.53146084 | F20: 26.42497455 | G20: 4.46853916 | H20: 4.575025447 | I20: 0.2351522335 | J20: 1 | K20: -186.0606171 | M20: True value (evaluated at 100,5,0.2)
A21: 21.52988882 | B21: 9 | C21: 25 | D21: 4.762561034 | E21: 22.68198761 | F21: 22.58047655 | G21: 2.318012395 | H21: 2.419523454 | I21: 0.1962310586 | J21: 1 | K21: -174.6729351 | M21: [X] | P21: [X]-1
A22: 18.53352832 | B22: 10 | C22: 23 | D22: 4.412443673 | E22: 19.46965916 | F22: 19.3735459 | G22: 3.530340836 | H22: 3.626454096 | I22: 0.1637519141 | J22: 1 | K22: -161.9577546 | M22: 0.04720442113 | N22: 0.1426976041 | O22: -17.05680926 | P22: 42.6613191 | Q22: 1.943656942 | R22: 0.07569751421
A23: 16.08031584 | B23: 11 | C23: 8 | D23: 4.097440497 | E23: 16.78901862 | F23: 16.69844915 | G23: -8.789018623 | H23: -8.698449151 | I23: 0.1366485487 | J23: 1 | K23: -148.6664841 | M23: 0.1426976041 | N23: 1.346047918 | O23: -114.9829488 | P23: 1.943656942 | Q23: 3.491664325 | R23: 0.03459036947
A24: 14.07179533 | B24: 12 | C24: 11 | D24: 3.814716735 | E24: 14.55206377 | F24: 14.46698753 | G24: -3.552063766 | H24: -3.466987532 | I24: 0.1140311915 | J24: 1 | K24: -135.3381608 | M24: -17.05680926 | N24: -114.9829488 | O24: 12565.18658 | P24: 0.07569751421 | Q24: 0.03459036947 | R24: 0.0004988752618
A25: 12.42735782 | B25: 13 | C25: 14 | D25: 3.561651028 | E25: 12.68535805 | F25: 12.60558908 | G25: 1.314641954 | H25: 1.394410921 | I25: 0.09515734161 | J25: 1 | K25: -122.3491665
A26: 11.08100626 | B26: 14 | C26: 10 | D26: 3.33580871 | E26: 11.12761975 | F26: 11.05288292 | G26: -1.127619749 | H26: -1.05288292 | I26: 0.07940739322 | J26: 1 | K26: -109.9523047 | M26: Fractional difference of current from true value
A27: 9.978706837 | B27: 15 | C27: 3 | D27: 3.134917893 | E27: 9.827710196 | F27: 9.757675861 | G27: -6.827710196 | H27: -6.757675861 | I27: 0.06626429439 | J27: 1 | K27: -98.30739741 | M27: [X] | P27: [X]-1
A28: 9.076220398 | B28: 16 | C28: 6 | D28: 2.956848815 | E28: 8.742954913 | F28: 8.677264531 | G28: -2.742954913 | H28: =C28-$O$4*EXP(-$O$6*B28)-$O$5 -> -2.677264531 | I28: 0.05529657294 | J28: 1 | K28: -87.50513937 | M28: =(M16-M22)/M22 -> 0.1485668863 | N28: 0.1649220433 | O28: 0.2991851851 | P28: -0.1074171421 | Q28: 0.01124976717 | R28: -0.1706090133
A29: 8.337326996 | B29: 17 | C29: 11 | D29: 2.799596879 | E29: 7.837742684 | F29: 7.77602744 | G29: 3.162257316 | H29: 3.22397256 | I29: 0.04614417171 | J29: 1 | K29: -77.58560268 | M29: =(M17-M23)/M23 -> 0.1649220433 | N29: 0.03453069574 | O29: 0.2559902736 | P29: 0.01124976717 | Q29: 0.2669339967 | R29: 0.09837256051
A30: 7.732372245 | B30: 18 | C30: 10 | D30: 2.661269711 | E30: 7.082356476 | F30: 7.024250528 | G30: 2.917643524 | H30: 2.975749472 | I30: 0.03850662835 | J30: 1 | K30: -68.55250993 | M30: =(M18-M24)/M24 -> 0.2991851851 | N30: 0.2559902736 | O30: 0.429472416 | P30: -0.1706090133 | Q30: 0.09837256051 | R30: -0.1208020599
A31: 7.237077186 | B31: 19 | C31: 10 | D31: 2.540078319 | E31: 6.451997866 | F31: 6.397147481 | G31: 3.548002134 | H31: 3.602852519 | I31: 0.03213321145 | J31: 1 | K31: -60.3841691
A32: 6.831563889 | B32: 20 | C32: 3 | D32: 2.434332133 | E32: 5.925972935 | F32: 5.874042521 | G32: -2.925972935 | H32: -2.874042521 | I32: 0.02681468937 | J32: 1 | K32: -53.04178464
